Workbook

Sheet Меню СУПА
A2: Утверждаю | B2: Директор ООО "ФУДСОЦСЕРВИС" | H2: Согласовано __________________________
B3: _________________Харламова Э.Р. | H3: Руководитель образовательного учреждения
A5: Примерное цикличное двенадцатидневное меню группы продленного дня для учащихся образовательных учреждений Республики Татарстан
A6: № Сборника рецептур | B6: Наименование блюд и продуктов | C6: Выход,г | D6: Белки,г | E6: Жиры,г | F6: Угл-ды,г | G6: Энер.ценность,ккал | H6: В1,мг | I6: С,мг | J6: А | K6: Е,мкг | L6: Са,мг | M6: Р,мг | N6: Mg,мг | O6: Fe,мг
A7: 1 неделя
B8: ПОНЕДЕЛЬНИК
A9: № 113 Сбор.рец. На прод-ию для обуч. Во всех образ.учреж-Дели 2017 | B9: Суп-лапша домашняя с мясом птицы | C9: 250/10 | D9: 5.65 | E9: 6.10 | F9: 11.62 | G9: 132.55 | H9: 0.05 | I9: 0.74 | J9: 18.32 | K9: 2.67 | L9: 33.91 | M9: 54.90 | N9: 12.70 | O9: 0.84
A10: ТТК составлена на основании акта проработки 2019 г от 29.10.19 | B10: Напиток из шиповника | C10: 200 | D10: 0.68 | E10: 0.28 | F10: 10.78 | G10: 48.20 | H10: 0.01 | I10: 100.00 | J10: 0.00 | K10: 0.76 | L10: 21.34 | M10: 3.44 | N10: 3.44 | O10: 0.63
A11: табл 6 стр 134,144,Хим. Состав и калорийность российских продуктов питания Дели + 2012 | B11: Хлеб ржаной | C11: 30 | D11: 1.98 | E11: 0.36 | F11: 11.88 | G11: 59.40 | H11: 0.05 | I11: 0.00 | J11: 0.00 | K11: 0.42 | L11: 8.70 | M11: 45.00 | N11: 14.10 | O11: 1.17
B12: Итого: | C12: 490 | D12: =SUM(D9:D11) -> 8.31 | E12: =SUM(E9:E11) -> 6.74 | F12: 34.28 | G12: 240.15 | H12: 0.12 | I12: 100.74 | J12: 18.32 | K12: 3.85 | L12: 63.95 | M12: 103.34 | N12: 30.24 | O12: 2.64
B14: ВТОРНИК
A15: № 82 Сбор.рец. На прод-ию для обуч. Во всех образ.учреж-Дели 2017 | B15: Борщ из свежей капусты с мясными фрикадельками, со сметаной | C15: 250/10/5 | D15: 3.93 | E15: 6.84 | F15: 11.19 | G15: 131.46 | H15: 0.06 | I15: 10.75 | J15: 7.00 | K15: 2.48 | L15: 56.28 | M15: 78.42 | N15: 29.80 | O15: 0.17
A16: № 349 Сбор.рец. На прод-ию для обуч. Во всех образ.учреж-Дели 2017 | B16: Компот из сухофруктов | C16: 200 | D16: 0.66 | E16: 0.09 | F16: 12.03 | G16: 92.90 | H16: 0.02 | I16: 0.91 | J16: 0.00 | K16: 0.64 | L16: 40.60 | M16: 29.30 | N16: 21.83 | O16: 0.87
A17: табл 6 стр 134,144,Хим. Состав и калорийность российских продуктов питания Дели + 2012 | B17: Хлеб ржаной | C17: 30 | D17: 1.98 | E17: 0.36 | F17: 11.88 | G17: 59.40 | H17: 0.05 | I17: 0.00 | J17: 0.00 | K17: 0.42 | L17: 8.70 | M17: 45.00 | N17: 14.10 | O17: 1.17
B18: Итого: | C18: 495 | D18: =SUM(D15:D17) -> 6.57 | E18: =SUM(E15:E17) -> 7.29 | F18: 35.10 | G18: 283.76 | H18: 0.13 | I18: 11.65 | J18: 7.00 | K18: 3.53 | L18: 105.58 | M18: 152.72 | N18: 65.72 | O18: 2.21
B20: СРЕДА
A21: № 96,105 Сбор.рец. На прод-ию для обуч. Во всех образ.учреж-Дели 2017 | B21: Рассольник Ленинградский, с куриными фрикадельками, со сметаной | C21: 250/10/5 | D21: 3.51 | E21: 7.16 | F21: 12.96 | G21: 135.95 | H21: 0.10 | I21: 8.50 | J21: 8.98 | K21: 2.39 | L21: 38.15 | M21: 70.19 | N21: 26.07 | O21: 1.05
A22: ТТК | B22: Компот из свежих яблок с июзмом | C22: 200 | D22: 0.25 | E22: 0.12 | F22: 28.87 | G22: 118.40 | H22: 0.02 | I22: 0.45 | J22: 0.00 | K22: 0.08 | L22: 17.25 | M22: 11.88 | N22: 6.63 | O22: 0.70
A23: № 376 Сбор.рец. На прод-ию для обуч. Во всех образ.учреж-Дели 2017 | B23: Чай с сахаром | C23: 190/10 | D23: 0.07 | E23: 0.02 | F23: 10 | G23: 40.00 | I23: 0.03 | L23: 11.1 | M23: 2.8 | N23: 1.4 | O23: 0.28
A24: табл 6 стр 134,144,Хим. Состав и калорийность российских продуктов питания Дели + 2012 | B24: Хлеб ржаной | C24: 30 | D24: 1.98 | E24: 0.36 | F24: 11.88 | G24: 59.40 | H24: 0.05 | I24: 0.00 | J24: 0.00 | K24: 0.42 | L24: 8.70 | M24: 45.00 | N24: 14.10 | O24: 1.17
B25: Итого: | C25: 495 | D25: =SUM(D21:D24) -> 5.81 | E25: =SUM(E21:E24) -> 7.66 | F25: 63.70 | G25: 353.75 | H25: 0.17 | I25: 8.98 | J25: 8.98 | K25: 2.89 | L25: 75.20 | M25: 129.87 | N25: 48.20 | O25: 3.20
B27: ЧЕТВЕРГ
A28: ТТК | B28: Шулпа с индейкой | C28: 250/10 | D28: 4.88 | E28: 4.94 | F28: 16.90 | G28: 143.40 | H28: 0.15 | I28: 12.31 | J28: 3.26 | K28: 1.34 | L28: 35.53 | M28: 96.69 | N28: 33.66 | O28: 1.66
A29: № 348 Сбор.рец. На прод-ию для обуч. Во всех образ.учреж-Дели 2017 | B29: Компот из урюка | C29: 200 | D29: 0.75 | E29: 0.06 | F29: 27.93 | G29: 116.4 | H29: 0.016 | I29: 0.6 | J29: 0 | K29: 0.826 | L29: 33.22 | M29: 22.8 | N29: 18.16 | O29: 0.48
A30: № 377 Сбор.рец. На прод-ию для обуч. Во всех образ.учреж-Дели 2017 | B30: Чай с сахаром и лимоном | C30: 185/10/5 | D30: 0.13 | E30: 0.02 | F30: 10.2 | G30: 42.00 | I30: 2.03 | J30: 0 | K30: 0.006 | L30: 13.25 | M30: 3.96 | N30: 2.16 | O30: 0.333
A31: табл 6 стр 134,144,Хим. Состав и калорийность российских продуктов питания Дели + 2012 | B31: Хлеб ржаной | C31: 30 | D31: 1.98 | E31: 0.36 | F31: 11.88 | G31: 59.40 | H31: 0.05 | I31: 0.00 | J31: 0.00 | K31: 0.42 | L31: 8.70 | M31: 45.00 | N31: 14.10 | O31: 1.17
B32: Итого: | C32: 490 | D32: =SUM(D28:D31) -> 7.74 | E32: =SUM(E28:E31) -> 5.38 | F32: 66.91 | G32: 361.20 | H32: 0.22 | I32: 14.94 | J32: 3.26 | K32: 2.59 | L32: 90.70 | M32: 168.45 | N32: 68.08 | O32: 3.65
B34: ПЯТНИЦА
A35: № 115 Сбор.рец. На прод-ию для обуч. Во всех образ.учреж-Дели 2017 | B35: Харчо с мясом птицы, со сметаной | C35: 250/10/5 | D35: 3.18 | E35: 7.40 | F35: 2.10 | G35: 86.80 | H35: 0.01 | I35: 1.73 | J35: 10.82 | K35: 2.38 | L35: 31.14 | M35: 19.45 | N35: 2.48 | O35: 0.20
A37: № 349 Сбор.рец. На прод-ию для обуч. Во всех образ.учреж-Дели 2017 | B37: Компот из сухофруктов | C37: 200 | D37: 0.66 | E37: 0.09 | F37: 22.03 | G37: 92.90 | H37: 0.02 | I37: 0.91 | J37: 0.00 | K37: 0.64 | L37: 40.60 | M37: 29.30 | N37: 21.83 | O37: 0.87
A38: табл 6 стр 134,144,Хим. Состав и калорийность российских продуктов питания Дели + 2012 | B38: Хлеб ржаной | C38: 30 | D38: 1.98 | E38: 0.36 | F38: 11.88 | G38: 59.40 | H38: 0.05 | I38: 0.00 | J38: 0.00 | K38: 0.42 | L38: 8.70 | M38: 45.00 | N38: 14.10 | O38: 1.17
B39: Итого: | C39: 495 | D39: =SUM(D35:D38) -> 5.82 | E39: =SUM(E35:E38) -> 7.85 | F39: 36.01 | G39: 239.10 | H39: 0.08 | I39: 2.64 | J39: 10.82 | K39: 3.44 | L39: 80.44 | M39: 93.75 | N39: 38.40 | O39: 2.24
B41: СУББОТА
A42: № 102 Сбор.рец. На прод-ию для обуч. Во всех образ.учреж-Дели 2017 | B42: Суп картофельный с горохом на курином бульоне | C42: 250 | D42: 6.29 | E42: 5.47 | F42: 16.54 | G42: 153.25 | H42: 0.23 | I42: 5.83 | J42: 0.00 | K42: 2.43 | L42: 44.68 | M42: 88.10 | N42: 35.58 | O42: 2.05
A43: № 376 Сбор.рец. На прод-ию для обуч. Во всех образ.учреж-Дели 2017 | B43: Чай с сахаром | C43: 190/10 | D43: 0.07 | E43: 0.02 | F43: 10 | G43: 40.00 | I43: 0.03 | L43: 11.1 | M43: 2.8 | N43: 1.4 | O43: 0.28
A44: табл 6 стр 134,144,Хим. Состав и калорийность российских продуктов питания Дели + 2012 | B44: Хлеб ржаной | C44: 30 | D44: 1.98 | E44: 0.36 | F44: 11.88 | G44: 59.40 | H44: 0.05 | I44: 0.00 | J44: 0.00 | K44: 0.42 | L44: 8.70 | M44: 45.00 | N44: 14.10 | O44: 1.17
B45: Итого: | C45: 480 | D45: =SUM(D42:D44) -> 8.34 | E45: =SUM(E42:E44) -> 5.85 | F45: 38.42 | G45: 252.65 | H45: 0.28 | I45: 5.86 | J45: 0.00 | K45: 2.85 | L45: 64.48 | M45: 135.90 | N45: 51.08 | O45: 3.50
B46: Всего за 6 дней 1 недели: | C46: =C12+C18+C25+C32+C39+C45 -> 2945 | D46: =D12+D18+D25+D32+D39+D45 -> 42.59 | E46: =E12+E18+E25+E32+E39+E45 -> 40.76 | F46: 274.42 | G46: 1,730.61 | H46: 0.99 | I46: 144.80 | J46: 48.38 | K46: 19.14 | L46: 480.34 | M46: 784.02 | N46: 301.72 | O46: 17.44
A48: 2 неделя
B49: ПОНЕДЕЛЬНИК
A50: № 88 Сбор.рец. На прод-ию для обуч. Во всех образ.учреж-Дели 2017 | B50: Суп картофельный с вермишелью, с куриными фрикадельками | C50: 250/10 | D50: 4.05 | E50: 4.16 | F50: 18.25 | G50: 138.85 | H50: 0.12 | I50: 8.35 | J50: 3.98 | K50: 1.45 | L50: 33.80 | M50: 77.99 | N50: 28.72 | O50: 1.24
A52: № 377 Сбор.рец. На прод-ию для обуч. Во всех образ.учреж-Дели 2017 | B52: Чай с сахаром и лимоном | C52: 185/10/5 | D52: 0.13 | E52: 0.02 | F52: 10.2 | G52: 42.00 | I52: 2.03 | J52: 0 | K52: 0.006 | L52: 13.25 | M52: 3.96 | N52: 2.16 | O52: 0.333
A53: табл 6 стр 134,144,Хим. Состав и калорийность российских продуктов питания Дели + 2012 | B53: Хлеб ржаной | C53: 30 | D53: 1.98 | E53: 0.36 | F53: 11.88 | G53: 59.40 | H53: 0.05 | I53: 0.00 | J53: 0.00 | K53: 0.42 | L53: 8.70 | M53: 45.00 | N53: 14.10 | O53: 1.17
B54: Итого: | C54: 490 | D54: =SUM(D50:D53) -> 6.16 | E54: =SUM(E50:E53) -> 4.54 | F54: 40.33 | G54: 240.25 | H54: 0.17 | I54: 10.38 | J54: 3.98 | K54: 1.87 | L54: 55.75 | M54: 126.95 | N54: 44.98 | O54: 2.74
B56: ВТОРНИК
A57: Акт проработки от 16.02.2019 | B57: Солянка по-домашнему,со сметаной | C57: 250/10 | D57: 8.03 | E57: 9.15 | F57: 7.19 | G57: 168.63 | H57: 0.06 | I57: 0.80 | J57: 5.88 | K57: 1.58 | L57: 23.73 | M57: 56.55 | N57: 16.75 | O57: 0.58
A58: № 376 Сбор.рец. На прод-ию для обуч. Во всех образ.учреж-Дели 2017 | B58: Чай с сахаром | C58: 190/10 | D58: 0.07 | E58: 0.02 | F58: 10 | G58: 40.00 | I58: 0.03 | L58: 11.1 | M58: 2.8 | N58: 1.4 | O58: 0.28
A59: табл 6 стр 134,144,Хим. Состав и калорийность российских продуктов питания Дели + 2012 | B59: Хлеб ржаной | C59: 30 | D59: 1.98 | E59: 0.36 | F59: 11.88 | G59: 59.40 | H59: 0.05 | I59: 0.00 | J59: 0.00 | K59: 0.42 | L59: 8.70 | M59: 45.00 | N59: 14.10 | O59: 1.17
B60: Всего: | C60: 490 | D60: =SUM(D57:D59) -> 10.08 | E60: =SUM(E57:E59) -> 9.53 | F60: 29.07 | G60: 268.03 | H60: 0.11 | I60: 0.83 | J60: 5.88 | K60: 2.00 | L60: 43.53 | M60: 104.35 | N60: 32.25 | O60: 2.03
B62: СРЕДА
A63: № 88 Сбор.рец. На прод-ию для обуч. Во всех образ.учреж-Дели 2017 | B63: Щи из свежей капусты с картофелем на курином бульоне,с мясом птицы, со сметаной | C63: 250/10/5 | D63: 4.37 | E63: 8.31 | F63: 8.30 | G63: 132.15 | H63: 0.06 | I63: 16.05 | J63: 15.82 | K63: 2.47 | L63: 63.41 | M63: 71.50 | N63: 25.05 | O63: 1.03
A64: ТТК составлена на основании акта проработки 2019 г от 29.10.19 | B64: Напиток из шиповника | C64: 200 | D64: 0.68 | E64: 0.28 | F64: 10.78 | G64: 48.20 | H64: 0.01 | I64: 100.00 | J64: 0.00 | K64: 0.76 | L64: 21.34 | M64: 3.44 | N64: 3.44 | O64: 0.63
A65: табл 6 стр 134,144,Хим. Состав и калорийность российских продуктов питания Дели + 2012 | B65: Хлеб ржаной | C65: 30 | D65: 1.98 | E65: 0.36 | F65: 11.88 | G65: 59.40 | H65: 0.05 | I65: 0.00 | J65: 0.00 | K65: 0.42 | L65: 8.70 | M65: 45.00 | N65: 14.10 | O65: 1.17
B66: Итого: | C66: 485 | D66: =SUM(D63:D65) -> 7.02 | E66: 8.94 | F66: 30.96 | G66: 239.75 | H66: 0.13 | I66: 116.05 | J66: 15.82 | K66: 3.65 | L66: 93.45 | M66: 119.94 | N66: 42.59 | O66: 2.84
B68: ЧЕТВЕРГ
A69: № 95Сбор.рец. На прод-ию для обуч. Во всех образ.учреж-Дели 2017 | B69: Рассольник домашний с мясными фрикадельками | C69: 250/10 | D69: 4.09 | E69: 6.26 | F69: 12.76 | G69: 134.11 | H69: 0.11 | I69: 13.18 | J69: 2.00 | K69: 2.44 | L69: 41.90 | M69: 86.59 | N69: 31.30 | O69: 1.23
A70: ТТК | B70: Компот из изюма и урюка | C70: 200 | D70: 0.55 | E70: 0.07 | F70: 18.89 | G70: 79.30 | H70: 0.02 | I70: 0.30 | J70: 0.00 | K70: 0.45 | L70: 26.77 | M70: 21.08 | N70: 13.14 | O70: 0.47
A71: табл 6 стр 134,144,Хим. Состав и калорийность российских продуктов питания Дели + 2012 | B71: Хлеб ржаной | C71: 30 | D71: 1.98 | E71: 0.36 | F71: 11.88 | G71: 59.40 | H71: 0.05 | I71: 0.00 | J71: 0.00 | K71: 0.42 | L71: 8.70 | M71: 45.00 | N71: 14.10 | O71: 1.17
B72: Итого: | C72: 490 | D72: =SUM(D69:D71) -> 6.62 | E72: =SUM(E69:E71) -> 6.69 | F72: 43.53 | G72: 272.81 | H72: 0.18 | I72: 13.48 | J72: 2.00 | K72: 3.31 | L72: 77.37 | M72: 152.67 | N72: 58.54 | O72: 2.87
B74: ПЯТНИЦА
A75: №98 Сбор.рец. На прод-ию для обуч. Во всех образ.учреж-Дели 2017 | B75: Суп крестьянский с крупой (пшено) с куриными фрикадельками, со сметаной | C75: 250/10/5 | D75: 2.98 | E75: 6.99 | F75: 7.07 | G75: 104.95 | H75: 0.05 | I75: 10.00 | J75: 8.98 | K75: 2.34 | L75: 44.88 | M75: 47.04 | N75: 16.07 | O75: 0.70
A76: № 376 Сбор.рец. На прод-ию для обуч. Во всех образ.учреж-Дели 2017 | B76: Чай с сахаром | C76: 190/10 | D76: 0.07 | E76: 0.02 | F76: 10 | G76: 40.00 | I76: 0.03 | L76: 11.1 | M76: 2.8 | N76: 1.4 | O76: 0.28
A77: табл 6 стр 134,144,Хим. Состав и калорийность российских продуктов питания Дели + 2012 | B77: Хлеб ржаной | C77: 30 | D77: 1.98 | E77: 0.36 | F77: 11.88 | G77: 59.40 | H77: 0.05 | I77: 0.00 | J77: 0.00 | K77: 0.42 | L77: 8.70 | M77: 45.00 | N77: 14.10 | O77: 1.17
B78: Итого: | C78: 495 | D78: =D75+D76+D77 -> 5.03 | E78: =E75+E76+E77 -> 7.37 | F78: 28.95 | G78: 204.35 | H78: 0.10 | I78: 10.03 | J78: 8.98 | K78: 2.76 | L78: 64.68 | M78: 94.84 | N78: 31.57 | O78: 2.15
B80: СУББОТА
A82: № 86 Сбор.рец. На прод-ию для обуч. Во всех образ.учреж-Дели 2016 | B82: Суп с рисовой крупой и мясными фрикадельками | C82: 250/10 | D82: 2.57 | E82: 5.97 | F82: 1.80 | G82: 70.86 | H82: 0.02 | I82: 0.80 | J82: 2.00 | K82: 2.31 | L82: 24.15 | M82: 33.29 | N82: 8.75 | O82: 0.36
A83: ТТК составлена на основании акта проработки 2019 г от 29.10.19 | B83: Напиток из шиповника | C83: 200 | D83: 0.68 | E83: 0.28 | F83: 10.78 | G83: 48.20 | H83: 0.01 | I83: 100.00 | J83: 0.00 | K83: 0.76 | L83: 21.34 | M83: 3.44 | N83: 3.44 | O83: 0.63
A84: табл 6 стр 134,144,Хим. Состав и калорийность российских продуктов питания Дели + 2012 | B84: Хлеб ржаной | C84: 30 | D84: 1.98 | E84: 0.36 | F84: 11.88 | G84: 59.40 | H84: 0.05 | I84: 0.00 | J84: 0.00 | K84: 0.42 | L84: 8.70 | M84: 45.00 | N84: 14.10 | O84: 1.17
B85: Итого: | C85: 490 | D85: =SUM(D82:D84) -> 5.23 | E85: =SUM(E82:E84) -> 6.61 | F85: 24.46 | G85: 178.46 | H85: 0.08 | I85: 100.80 | J85: 2.00 | K85: 3.49 | L85: 54.19 | M85: 81.73 | N85: 26.29 | O85: 2.16
B86: Всего за 6 дней 2 недели: | C86: =C54+C60+C66+C72+C78+C85 -> 2940 | D86: =D54+D60+D66+D72+D78+D85 -> 40.1364 | E86: 43.6861 | F86: 197.295 | G86: 1403.65 | H86: 0.7572 | I86: 251.565 | J86: 38.655 | K86: 17.081 | L86: 388.968 | M86: 680.472 | N86: 236.207 | O86: 14.775
B87: Всего за 12 дней: | C87: =C86+C46 -> 5885 | D87: =D86+D46 -> 82.7261 | E87: 84.4479 | F87: 471.7135 | G87: 3134.26 | H87: 1.7478 | I87: 396.364 | J87: 87.035 | K87: 36.22 | L87: 869.307 | M87: 1464.488 | N87: 537.925 | O87: 32.211
B88: В среднем на 1 учащегося в день | C88: =C87/12 -> 490 | D88: =D87/12 -> 6.89 | E88: =E87/12 -> 7.04 | F88: 39.31 | G88: 261.19 | H88: 0.15 | I88: 33.03 | J88: 7.25 | K88: 3.02 | L88: 72.44 | M88: 122.04 | N88: 44.83 | O88: 2.68
